[Event "*** Titled Tuesday Blitz"]
[Site "Chess.com"]
[Date "2020.05.05"]
[Round "1"]
[White "davidkalashian"]
[Black "semchik73"]
[Result "1/2-1/2"]
[WhiteElo "2535"]
[BlackElo "2207"]
[TimeControl "180+1"]
[EndTime "10:08:54 PDT"]
[Termination "Game drawn - insufficient material"]

1. d4 {[%clk 0:03:00.9]} 1... d5 {[%clk 0:02:59.7]} 2. Nf3 {[%clk 0:03:00]} 2...
c6 {[%clk 0:03:00]} 3. c4 {[%clk 0:02:59.7]} 3... Nf6 {[%clk 0:03:00.3]} 4. Qc2
{[%clk 0:02:58.1]} 4... g6 {[%clk 0:02:59.5]} 5. g3 {[%clk 0:02:57]} 5... Bf5
{[%clk 0:02:59]} 6. Qb3 {[%clk 0:02:53.7]} 6... Qc8 {[%clk 0:02:55.7]} 7. Bg2
{[%clk 0:02:52.8]} 7... Bg7 {[%clk 0:02:54.9]} 8. Nc3 {[%clk 0:02:52.3]} 8...
O-O {[%clk 0:02:53.7]} 9. O-O {[%clk 0:02:44]} 9... dxc4 {[%clk 0:02:44.7]} 10.
Qxc4 {[%clk 0:02:42.8]} 10... Nbd7 {[%clk 0:02:40.9]} 11. Re1 {[%clk 0:02:37.6]}
11... Nb6 {[%clk 0:02:40.7]} 12. Qb3 {[%clk 0:02:37.9]} 12... Ne4 {[%clk
0:02:40]} 13. Nh4 {[%clk 0:02:35.3]} 13... Be6 {[%clk 0:02:30]} 14. Qc2 {[%clk
0:02:29.9]} 14... Nd6 {[%clk 0:02:15.1]} 15. Nf3 {[%clk 0:02:27.2]} 15... Nf5
{[%clk 0:02:07.3]} 16. Rd1 {[%clk 0:02:21.8]} 16... Rd8 {[%clk 0:02:06.1]} 17.
e3 {[%clk 0:02:21.8]} 17... c5 {[%clk 0:01:46.9]} 18. dxc5 {[%clk 0:02:08.8]}
18... Qxc5 {[%clk 0:01:46.1]} 19. Ng5 {[%clk 0:02:00.2]} 19... Bc4 {[%clk
0:00:52.9]} 20. Nge4 {[%clk 0:01:55.7]} 20... Qc7 {[%clk 0:00:51.2]} 21. Bd2
{[%clk 0:01:43.7]} 21... Bd5 {[%clk 0:00:47]} 22. Be1 {[%clk 0:01:41.2]} 22...
Bc6 {[%clk 0:00:46.6]} 23. Rac1 {[%clk 0:01:39.7]} 23... Rac8 {[%clk 0:00:46]}
24. a3 {[%clk 0:01:37.3]} 24... Qb8 {[%clk 0:00:44.1]} 25. Qe2 {[%clk
0:01:33.5]} 25... Bxc3 {[%clk 0:00:38.1]} 26. Bxc3 {[%clk 0:01:31.5]} 26... Nd5
{[%clk 0:00:34.1]} 27. Ba5 {[%clk 0:01:28.6]} 27... b6 {[%clk 0:00:33.6]} 28.
Be1 {[%clk 0:01:28.1]} 28... Qe5 {[%clk 0:00:31.6]} 29. Nc3 {[%clk 0:01:23.7]}
29... Nxc3 {[%clk 0:00:30.6]} 30. Bxc3 {[%clk 0:01:20.8]} 30... Qb5 {[%clk
0:00:24.1]} 31. Qxb5 {[%clk 0:01:14.1]} 31... Bxb5 {[%clk 0:00:23.5]} 32. e4
{[%clk 0:01:11.9]} 32... Nd4 {[%clk 0:00:21.8]} 33. Bxd4 {[%clk 0:01:04.2]}
33... Rxc1 {[%clk 0:00:21.8]} 34. Rxc1 {[%clk 0:01:04.9]} 34... Rxd4 {[%clk
0:00:22.2]} 35. h4 {[%clk 0:00:55.7]} 35... Rc4 {[%clk 0:00:21.8]} 36. Rxc4
{[%clk 0:00:52.9]} 36... Bxc4 {[%clk 0:00:21.3]} 37. f4 {[%clk 0:00:53.4]} 37...
f6 {[%clk 0:00:20.6]} 38. Kf2 {[%clk 0:00:53.9]} 38... e5 {[%clk 0:00:20.9]} 39.
Ke3 {[%clk 0:00:54.5]} 39... Kf7 {[%clk 0:00:20.9]} 40. Bh3 {[%clk 0:00:53.7]}
40... Ke7 {[%clk 0:00:20.7]} 41. f5 {[%clk 0:00:53.2]} 41... gxf5 {[%clk
0:00:19.7]} 42. Bxf5 {[%clk 0:00:52.8]} 42... h6 {[%clk 0:00:19.7]} 43. Bh3
{[%clk 0:00:51.6]} 43... Kd6 {[%clk 0:00:20.1]} 44. b4 {[%clk 0:00:52.1]} 44...
a5 {[%clk 0:00:18.3]} 45. Kf3 {[%clk 0:00:50.7]} 45... axb4 {[%clk 0:00:18.1]}
46. axb4 {[%clk 0:00:49.5]} 46... Kc6 {[%clk 0:00:18.4]} 47. Bc8 {[%clk
0:00:37.9]} 47... Kb5 {[%clk 0:00:18.1]} 48. Kg4 {[%clk 0:00:38.2]} 48... Kxb4
{[%clk 0:00:18.2]} 49. Kh5 {[%clk 0:00:34.2]} 49... Kc5 {[%clk 0:00:18.4]} 50.
Kxh6 {[%clk 0:00:25.9]} 50... b5 {[%clk 0:00:18.7]} 51. Bd7 {[%clk 0:00:22.6]}
51... b4 {[%clk 0:00:18.5]} 52. Ba4 {[%clk 0:00:22.2]} 52... b3 {[%clk
0:00:18.8]} 53. Kg7 {[%clk 0:00:19.8]} 53... b2 {[%clk 0:00:18.8]} 54. Bc2
{[%clk 0:00:18.9]} 54... Kd4 {[%clk 0:00:19.1]} 55. h5 {[%clk 0:00:17.1]} 55...
Bd3 {[%clk 0:00:19.5]} 56. h6 {[%clk 0:00:14.7]} 56... Bxc2 {[%clk 0:00:19.6]}
57. h7 {[%clk 0:00:15.6]} 57... b1=Q {[%clk 0:00:19.6]} 58. h8=Q {[%clk
0:00:15.5]} 58... Qb7+ {[%clk 0:00:19.7]} 59. Kxf6 {[%clk 0:00:14.9]} 59... Qc6+
{[%clk 0:00:18.4]} 60. Kg5 {[%clk 0:00:15]} 60... Qxe4 {[%clk 0:00:16.5]} 61.
Qd8+ {[%clk 0:00:14.1]} 61... Qd5 {[%clk 0:00:16.8]} 62. Qb6+ {[%clk 0:00:14]}
62... Ke4 {[%clk 0:00:16.2]} 63. Qb4+ {[%clk 0:00:13.3]} 63... Qd4 {[%clk
0:00:15.7]} 64. Qe1+ {[%clk 0:00:13.3]} 64... Kd5 {[%clk 0:00:14.9]} 65. Qh1+
{[%clk 0:00:11.1]} 65... Be4 {[%clk 0:00:13.8]} 66. Qc1 {[%clk 0:00:10.5]} 66...
Qf2 {[%clk 0:00:12.7]} 67. g4 {[%clk 0:00:08]} 67... Qf3 {[%clk 0:00:10.7]} 68.
Qd2+ {[%clk 0:00:06.9]} 68... Qd3 {[%clk 0:00:11.1]} 69. Qa5+ {[%clk 0:00:06.1]}
69... Kd4 {[%clk 0:00:11.2]} 70. Qb6+ {[%clk 0:00:06.4]} 70... Kc4 {[%clk
0:00:11.4]} 71. Qc7+ {[%clk 0:00:06.2]} 71... Kb3 {[%clk 0:00:10.8]} 72. Qxe5
{[%clk 0:00:06.2]} 72... Qd5 {[%clk 0:00:10.2]} 73. Qxd5+ {[%clk 0:00:05.8]}
73... Bxd5 {[%clk 0:00:10.4]} 74. Kf6 {[%clk 0:00:06.3]} 74... Kc4 {[%clk
0:00:09.4]} 75. g5 {[%clk 0:00:07.2]} 75... Be4 {[%clk 0:00:09.7]} 76. g6 {[%clk
0:00:08.1]} 76... Bxg6 {[%clk 0:00:09.7]} 1/2-1/2

[Event "*** Titled Tuesday Blitz"]
[Site "Chess.com"]
[Date "2020.05.05"]
[Round "1"]
[White "mrkvoz"]
[Black "BasilSmash"]
[Result "1/2-1/2"]
[WhiteElo "2809"]
[BlackElo "2433"]
[TimeControl "180+1"]
[EndTime "10:08:57 PDT"]
[Termination "Game drawn by repetition"]

1. e4 {[%clk 0:03:00.9]} 1... c6 {[%clk 0:02:58.4]} 2. Nc3 {[%clk 0:03:00.4]}
2... d5 {[%clk 0:02:59.3]} 3. Nf3 {[%clk 0:03:01]} 3... Bg4 {[%clk 0:02:58.9]}
4. h3 {[%clk 0:03:00.8]} 4... Bxf3 {[%clk 0:02:59.1]} 5. Qxf3 {[%clk 0:03:01.7]}
5... Nf6 {[%clk 0:02:59.9]} 6. g3 {[%clk 0:03:01.4]} 6... e6 {[%clk 0:02:59.2]}
7. Bg2 {[%clk 0:03:01.4]} 7... Bc5 {[%clk 0:02:58.6]} 8. O-O {[%clk 0:03:01.2]}
8... O-O {[%clk 0:02:57.8]} 9. Rd1 {[%clk 0:03:00.8]} 9... Bd4 {[%clk
0:02:52.9]} 10. d3 {[%clk 0:02:55.2]} 10... Nbd7 {[%clk 0:02:50.2]} 11. Qe2
{[%clk 0:02:52.6]} 11... b5 {[%clk 0:02:40.2]} 12. Nb1 {[%clk 0:02:47.1]} 12...
Qc7 {[%clk 0:02:26.7]} 13. Kh2 {[%clk 0:02:42.2]} 13... a5 {[%clk 0:02:19.8]}
14. f4 {[%clk 0:02:41.3]} 14... dxe4 {[%clk 0:02:15.2]} 15. dxe4 {[%clk
0:02:41.1]} 15... e5 {[%clk 0:02:13.7]} 16. f5 {[%clk 0:02:39.4]} 16... a4
{[%clk 0:02:10.3]} 17. c3 {[%clk 0:02:27.3]} 17... Bb6 {[%clk 0:02:05.5]} 18. g4
{[%clk 0:02:27.6]} 18... Nc5 {[%clk 0:02:00.5]} 19. g5 {[%clk 0:02:26.7]} 19...
Ne8 {[%clk 0:01:54.7]} 20. Be3 {[%clk 0:02:22.9]} 20... Nd7 {[%clk 0:01:47]} 21.
Nd2 {[%clk 0:02:22.3]} 21... Nd6 {[%clk 0:01:39.8]} 22. Nf1 {[%clk 0:02:16.9]}
22... Rad8 {[%clk 0:01:36.2]} 23. Ng3 {[%clk 0:02:12.8]} 23... Bxe3 {[%clk
0:01:32.8]} 24. Qxe3 {[%clk 0:02:13.7]} 24... Nc4 {[%clk 0:01:31.6]} 25. Qe2
{[%clk 0:02:14.3]} 25... Nc5 {[%clk 0:01:29.6]} 26. f6 {[%clk 0:02:12.6]} 26...
g6 {[%clk 0:01:27.1]} 27. h4 {[%clk 0:02:11.2]} 27... Ne6 {[%clk 0:01:21.1]} 28.
b3 {[%clk 0:02:07.2]} 28... Nf4 {[%clk 0:01:19.8]} 29. Qf2 {[%clk 0:02:05]}
29... Nb6 {[%clk 0:01:17.3]} 30. Ne2 {[%clk 0:02:01.9]} 30... a3 {[%clk
0:01:11.6]} 31. Nxf4 {[%clk 0:01:43]} 31... exf4 {[%clk 0:01:12]} 32. Bf3 {[%clk
0:01:32]} 32... c5 {[%clk 0:01:06.3]} 33. Kg2 {[%clk 0:01:15.3]} 33... Qe5
{[%clk 0:01:04]} 34. Qc2 {[%clk 0:00:57.8]} 34... h6 {[%clk 0:00:48.2]} 35. Rxd8
{[%clk 0:00:57.4]} 35... Rxd8 {[%clk 0:00:47.4]} 36. Rd1 {[%clk 0:00:58.3]}
36... Rd7 {[%clk 0:00:31.2]} 37. Rxd7 {[%clk 0:00:32.4]} 37... Nxd7 {[%clk
0:00:31.7]} 38. Qd3 {[%clk 0:00:32.7]} 38... Nf8 {[%clk 0:00:29]} 39. gxh6
{[%clk 0:00:25.8]} 39... b4 {[%clk 0:00:28.6]} 40. cxb4 {[%clk 0:00:20.6]} 40...
cxb4 {[%clk 0:00:29.1]} 41. h5 {[%clk 0:00:17.9]} 41... Qxf6 {[%clk 0:00:24.3]}
42. Qe2 {[%clk 0:00:16.7]} 42... Qh4 {[%clk 0:00:19.6]} 43. e5 {[%clk
0:00:15.3]} 43... g5 {[%clk 0:00:12.6]} 44. Qe4 {[%clk 0:00:12]} 44... Qg3+
{[%clk 0:00:08.2]} 45. Kf1 {[%clk 0:00:11.5]} 45... g4 {[%clk 0:00:08.3]} 46.
h7+ {[%clk 0:00:09.3]} 46... Nxh7 {[%clk 0:00:07.7]} 47. Bh1 {[%clk 0:00:05.4]}
47... f3 {[%clk 0:00:06.9]} 48. h6 {[%clk 0:00:05.4]} 48... Qh2 {[%clk
0:00:03.2]} 49. Bxf3 {[%clk 0:00:02.4]} 49... gxf3 {[%clk 0:00:04.1]} 50. Qxf3
{[%clk 0:00:03.3]} 50... Qxh6 {[%clk 0:00:03.9]} 51. Qa8+ {[%clk 0:00:03]} 51...
Kg7 {[%clk 0:00:03.9]} 52. Qe4 {[%clk 0:00:02.8]} 52... Qg6 {[%clk 0:00:03.8]}
53. Qxb4 {[%clk 0:00:02.2]} 53... Qb1+ {[%clk 0:00:03.7]} 54. Kf2 {[%clk
0:00:02]} 54... Qxa2+ {[%clk 0:00:04.4]} 55. Ke3 {[%clk 0:00:02.8]} 55... Qb2
{[%clk 0:00:04.4]} 56. Qg4+ {[%clk 0:00:03.5]} 56... Kf8 {[%clk 0:00:04]} 57.
Qc8+ {[%clk 0:00:03.8]} 57... Kg7 {[%clk 0:00:04.2]} 58. Qg4+ {[%clk 0:00:03.8]}
58... Kh6 {[%clk 0:00:04.6]} 59. Qh4+ {[%clk 0:00:03.8]} 59... Kg6 {[%clk
0:00:04.9]} 60. Qe4+ {[%clk 0:00:04.3]} 60... Kg7 {[%clk 0:00:04.8]} 61. Qg4+
{[%clk 0:00:04.5]} 1/2-1/2

[Event "*** Titled Tuesday Blitz"]
[Site "Chess.com"]
[Date "2020.05.05"]
[Round "1"]
[White "Majesth"]
[Black "sergoy"]
[Result "1/2-1/2"]
[WhiteElo "2450"]
[BlackElo "2858"]
[TimeControl "180+1"]
[EndTime "10:09:07 PDT"]
[Termination "Game drawn by stalemate"]

1. d4 {[%clk 0:02:59.4]} 1... Nf6 {[%clk 0:02:58.2]} 2. Nc3 {[%clk 0:02:58.1]}
2... d5 {[%clk 0:02:57.7]} 3. Bf4 {[%clk 0:02:58.5]} 3... a6 {[%clk 0:02:54.6]}
4. Nf3 {[%clk 0:02:57.3]} 4... e6 {[%clk 0:02:47.2]} 5. e3 {[%clk 0:02:57.3]}
5... c5 {[%clk 0:02:42.7]} 6. Ne5 {[%clk 0:02:56.8]} 6... b5 {[%clk 0:02:41.3]}
7. a3 {[%clk 0:02:47]} 7... Bb7 {[%clk 0:02:41.1]} 8. Nd3 {[%clk 0:02:42.7]}
8... Nbd7 {[%clk 0:02:40.4]} 9. b4 {[%clk 0:02:40.7]} 9... cxd4 {[%clk
0:02:37.6]} 10. exd4 {[%clk 0:02:40.1]} 10... Ne4 {[%clk 0:02:34.7]} 11. Nxe4
{[%clk 0:02:33.6]} 11... dxe4 {[%clk 0:02:34.9]} 12. Nc5 {[%clk 0:02:32.2]}
12... Bd5 {[%clk 0:02:34.9]} 13. Be2 {[%clk 0:02:23.3]} 13... Be7 {[%clk
0:02:33.9]} 14. O-O {[%clk 0:02:21.3]} 14... O-O {[%clk 0:02:33.7]} 15. c3
{[%clk 0:02:15.8]} 15... Nxc5 {[%clk 0:02:31.8]} 16. bxc5 {[%clk 0:02:08.2]}
16... Qa5 {[%clk 0:02:30.2]} 17. Qd2 {[%clk 0:01:52.4]} 17... Rfd8 {[%clk
0:02:29.5]} 18. Qb2 {[%clk 0:01:41.5]} 18... Bc6 {[%clk 0:02:21.1]} 19. Rfd1
{[%clk 0:01:38.6]} 19... Rd7 {[%clk 0:02:21]} 20. Qb4 {[%clk 0:01:30.2]} 20...
Qd8 {[%clk 0:02:19.8]} 21. Be5 {[%clk 0:01:22]} 21... Rd5 {[%clk 0:02:17.7]} 22.
c4 {[%clk 0:01:20]} 22... bxc4 {[%clk 0:02:15.8]} 23. Bxc4 {[%clk 0:01:20.9]}
23... Rd7 {[%clk 0:01:54.4]} 24. Qb6 {[%clk 0:01:20.4]} 24... Qxb6 {[%clk
0:01:39.4]} 25. cxb6 {[%clk 0:01:21.3]} 25... Bd8 {[%clk 0:01:39.1]} 26. Rab1
{[%clk 0:01:17.3]} 26... Rb7 {[%clk 0:01:36.9]} 27. Rdc1 {[%clk 0:00:59.8]}
27... Bd7 {[%clk 0:01:15.3]} 28. d5 {[%clk 0:00:50.7]} 28... Rxb6 {[%clk
0:01:15.3]} 29. dxe6 {[%clk 0:00:44.9]} 29... Bxe6 {[%clk 0:01:03.9]} 30. Rxb6
{[%clk 0:00:44.1]} 30... Bxb6 {[%clk 0:01:01.3]} 31. Bxe6 {[%clk 0:00:44.5]}
31... fxe6 {[%clk 0:01:01.3]} 32. Rc6 {[%clk 0:00:39.3]} 32... Ba7 {[%clk
0:00:28.3]} 33. g4 {[%clk 0:00:28]} 33... Rf8 {[%clk 0:00:19.9]} 34. Bg3 {[%clk
0:00:23.4]} 34... e3 {[%clk 0:00:20.3]} 35. fxe3 {[%clk 0:00:23.6]} 35... Bxe3+
{[%clk 0:00:21.2]} 36. Kg2 {[%clk 0:00:24.4]} 36... a5 {[%clk 0:00:21.3]} 37.
Rxe6 {[%clk 0:00:24.2]} 37... Bc5 {[%clk 0:00:21.3]} 38. Re5 {[%clk 0:00:23.8]}
38... Rc8 {[%clk 0:00:19.4]} 39. a4 {[%clk 0:00:22.4]} 39... Bb4 {[%clk
0:00:19.7]} 40. Re2 {[%clk 0:00:13.8]} 40... Rc3 {[%clk 0:00:19.8]} 41. Ra2
{[%clk 0:00:13.8]} 41... h6 {[%clk 0:00:19.7]} 42. h3 {[%clk 0:00:13.7]} 42...
Rd3 {[%clk 0:00:18.9]} 43. Bf2 {[%clk 0:00:13]} 43... Kh7 {[%clk 0:00:18.8]} 44.
Ra1 {[%clk 0:00:12.1]} 44... Kg6 {[%clk 0:00:18.9]} 45. Ra2 {[%clk 0:00:12]}
45... h5 {[%clk 0:00:19.3]} 46. gxh5+ {[%clk 0:00:10.7]} 46... Kxh5 {[%clk
0:00:20.2]} 47. Bg3 {[%clk 0:00:10.4]} 47... g5 {[%clk 0:00:20.1]} 48. Bh2
{[%clk 0:00:10]} 48... Kg6 {[%clk 0:00:18.5]} 49. Bg3 {[%clk 0:00:09.6]} 49...
Kf5 {[%clk 0:00:18.9]} 50. Rf2+ {[%clk 0:00:06.9]} 50... Kg6 {[%clk 0:00:19.3]}
51. Ra2 {[%clk 0:00:06.6]} 51... Rb3 {[%clk 0:00:15]} 52. Kf2 {[%clk 0:00:06.6]}
52... Bc3 {[%clk 0:00:15.4]} 53. Kg2 {[%clk 0:00:06.9]} 53... Kf5 {[%clk
0:00:13.5]} 54. Rf2+ {[%clk 0:00:05.6]} 54... Ke6 {[%clk 0:00:13.6]} 55. Re2+
{[%clk 0:00:05.7]} 55... Kd5 {[%clk 0:00:14.1]} 56. Rf2 {[%clk 0:00:04.9]} 56...
Ke4 {[%clk 0:00:12.6]} 57. Re2+ {[%clk 0:00:05.1]} 57... Kd3 {[%clk 0:00:10.1]}
58. Rf2 {[%clk 0:00:05.5]} 58... Bd2 {[%clk 0:00:08.4]} 59. Rf3+ {[%clk
0:00:05.3]} 59... Kc4 {[%clk 0:00:07.1]} 60. Rxb3 {[%clk 0:00:05.5]} 60... Kxb3
{[%clk 0:00:07.3]} 61. Kf3 {[%clk 0:00:06]} 61... Kxa4 {[%clk 0:00:07.7]} 62.
Bc7 {[%clk 0:00:06]} 62... Kb3 {[%clk 0:00:05.9]} 63. Bxa5 {[%clk 0:00:05.2]}
63... Bxa5 {[%clk 0:00:06.8]} 64. Kg4 {[%clk 0:00:05.5]} 64... Bd8 {[%clk
0:00:07.4]} 65. h4 {[%clk 0:00:04.9]} 65... gxh4 {[%clk 0:00:07.9]} 66. Kh3
{[%clk 0:00:05.8]} 66... Kc4 {[%clk 0:00:07.6]} 67. Kg2 {[%clk 0:00:06.7]} 67...
Kd3 {[%clk 0:00:07.9]} 68. Kh1 {[%clk 0:00:07.6]} 68... Ke2 {[%clk 0:00:08.6]}
69. Kg1 {[%clk 0:00:08.5]} 69... Ke1 {[%clk 0:00:09.3]} 70. Kh1 {[%clk
0:00:09.4]} 70... Kf1 {[%clk 0:00:10.2]} 71. Kh2 {[%clk 0:00:09.3]} 71... Bg5
{[%clk 0:00:10.2]} 72. Kh1 {[%clk 0:00:10.2]} 72... Kf2 {[%clk 0:00:10.3]} 73.
Kh2 {[%clk 0:00:11.1]} 73... Kf3 {[%clk 0:00:10.9]} 74. Kh1 {[%clk 0:00:12]}
74... Kg3 {[%clk 0:00:11.6]} 75. Kg1 {[%clk 0:00:12.9]} 75... Bf4 {[%clk
0:00:12.5]} 76. Kh1 {[%clk 0:00:13.8]} 76... Kh3 {[%clk 0:00:13.1]} 77. Kg1
{[%clk 0:00:14.7]} 77... Kg3 {[%clk 0:00:05.1]} 78. Kh1 {[%clk 0:00:15.6]} 78...
Kf2 {[%clk 0:00:05.6]} 1/2-1/2

[Event "*** Titled Tuesday Blitz"]
[Site "Chess.com"]
[Date "2020.05.05"]
[Round "1"]
[White "DivyaDeshmukh23"]
[Black "Sashadav97"]
[Result "0-1"]
[WhiteElo "2396"]
[BlackElo "2760"]
[TimeControl "180+1"]
[EndTime "10:09:20 PDT"]
[Termination "Sashadav97 won by checkmate"]

1. e4 {[%clk 0:03:00.9]} 1... c5 {[%clk 0:02:59.2]} 2. Nf3 {[%clk 0:02:58.1]}
2... Nc6 {[%clk 0:02:57.8]} 3. d4 {[%clk 0:02:58.2]} 3... cxd4 {[%clk
0:02:58.7]} 4. Nxd4 {[%clk 0:02:57.9]} 4... Nf6 {[%clk 0:02:58.8]} 5. Nc3 {[%clk
0:02:50.8]} 5... d6 {[%clk 0:02:58.9]} 6. Bg5 {[%clk 0:02:48.8]} 6... e6 {[%clk
0:02:58.1]} 7. Qd2 {[%clk 0:02:45.2]} 7... a6 {[%clk 0:02:56.8]} 8. O-O-O {[%clk
0:02:44.7]} 8... Bd7 {[%clk 0:02:56.7]} 9. f3 {[%clk 0:02:42.1]} 9... Nxd4
{[%clk 0:02:55.9]} 10. Qxd4 {[%clk 0:02:36.5]} 10... Be7 {[%clk 0:02:55.7]} 11.
h4 {[%clk 0:02:35.9]} 11... b5 {[%clk 0:02:49.2]} 12. a3 {[%clk 0:02:34.2]}
12... h6 {[%clk 0:02:25.2]} 13. Be3 {[%clk 0:02:29.8]} 13... h5 {[%clk
0:02:24.7]} 14. Kb1 {[%clk 0:02:13.7]} 14... Rb8 {[%clk 0:02:16.6]} 15. Bg5
{[%clk 0:01:47]} 15... a5 {[%clk 0:01:52.3]} 16. e5 {[%clk 0:01:15.3]} 16...
dxe5 {[%clk 0:01:16.3]} 17. Qxe5 {[%clk 0:01:16.2]} 17... O-O {[%clk 0:01:12.6]}
18. Bd3 {[%clk 0:01:06.6]} 18... b4 {[%clk 0:01:11.5]} 19. axb4 {[%clk
0:01:02.3]} 19... axb4 {[%clk 0:01:12.4]} 20. Bxf6 {[%clk 0:00:41]} 20... Bxf6
{[%clk 0:01:05.7]} 21. Qxh5 {[%clk 0:00:41]} 21... g6 {[%clk 0:01:05]} 22. Bxg6
{[%clk 0:00:41.3]} 22... fxg6 {[%clk 0:01:05]} 23. Qxg6+ {[%clk 0:00:42.2]}
23... Bg7 {[%clk 0:01:05.3]} 24. Ne4 {[%clk 0:00:42.1]} 24... Rb7 {[%clk
0:00:43.5]} 25. h5 {[%clk 0:00:41.9]} 25... Rf6 {[%clk 0:00:40.7]} 26. Nxf6+
{[%clk 0:00:41.2]} 26... Qxf6 {[%clk 0:00:41.6]} 27. Qxf6 {[%clk 0:00:37.7]}
27... Bxf6 {[%clk 0:00:42.5]} 28. g4 {[%clk 0:00:38]} 28... Bc6 {[%clk
0:00:41.6]} 29. g5 {[%clk 0:00:36.9]} 29... Be5 {[%clk 0:00:39.8]} 30. Rhe1
{[%clk 0:00:35.8]} 30... Rb5 {[%clk 0:00:21.5]} 31. Rd8+ {[%clk 0:00:34.8]}
31... Kf7 {[%clk 0:00:20.5]} 32. g6+ {[%clk 0:00:34.9]} 32... Ke7 {[%clk
0:00:20.8]} 33. Rc8 {[%clk 0:00:34.1]} 33... Bxf3 {[%clk 0:00:19.6]} 34. Rxe5
{[%clk 0:00:31.6]} 34... Rxe5 {[%clk 0:00:16.3]} 35. g7 {[%clk 0:00:31.8]} 35...
Re1+ {[%clk 0:00:16.4]} 36. Ka2 {[%clk 0:00:31.6]} 36... Bd5+ {[%clk 0:00:17.3]}
37. b3 {[%clk 0:00:31.8]} 37... e5 {[%clk 0:00:17.7]} 38. h6 {[%clk 0:00:31]}
38... Rh1 {[%clk 0:00:17.1]} 39. Rh8 {[%clk 0:00:29.2]} 39... Kf6 {[%clk
0:00:13.6]} 40. Rd8 {[%clk 0:00:23.7]} 40... Bf7 {[%clk 0:00:11.6]} 41. g8=Q
{[%clk 0:00:20.7]} 41... Bxg8 {[%clk 0:00:11.3]} 42. Rxg8 {[%clk 0:00:21.6]}
42... Rxh6 {[%clk 0:00:11.7]} 43. Rg4 {[%clk 0:00:22.3]} 43... Kf5 {[%clk
0:00:11.8]} 44. Rxb4 {[%clk 0:00:23]} 44... e4 {[%clk 0:00:12.7]} 45. Kb2 {[%clk
0:00:23.6]} 45... Kf4 {[%clk 0:00:12.6]} 46. Kc3 {[%clk 0:00:24]} 46... Kf3
{[%clk 0:00:13.1]} 47. Rb8 {[%clk 0:00:23.6]} 47... e3 {[%clk 0:00:12.7]} 48.
Rf8+ {[%clk 0:00:23.4]} 48... Ke2 {[%clk 0:00:13.2]} 49. b4 {[%clk 0:00:23.6]}
49... Rc6+ {[%clk 0:00:13.2]} 50. Kb2 {[%clk 0:00:23.2]} 50... Kd1 {[%clk
0:00:13.3]} 51. Rd8+ {[%clk 0:00:23.2]} 51... Ke1 {[%clk 0:00:12.7]} 52. b5
{[%clk 0:00:23.4]} 52... Rc5 {[%clk 0:00:12.8]} 53. Rb8 {[%clk 0:00:21.5]} 53...
e2 {[%clk 0:00:12.7]} 54. c3 {[%clk 0:00:20.6]} 54... Kf2 {[%clk 0:00:11.6]} 55.
Rf8+ {[%clk 0:00:20.2]} 55... Kg2 {[%clk 0:00:11.9]} 56. Re8 {[%clk 0:00:20.1]}
56... Kf3 {[%clk 0:00:12]} 57. Kc2 {[%clk 0:00:20.1]} 57... Rxb5 {[%clk
0:00:11.1]} 58. c4 {[%clk 0:00:20.4]} 58... Rb7 {[%clk 0:00:09.7]} 59. Rf8+
{[%clk 0:00:19.1]} 59... Ke3 {[%clk 0:00:09.7]} 60. Re8+ {[%clk 0:00:19]} 60...
Kf2 {[%clk 0:00:10.3]} 61. Rf8+ {[%clk 0:00:18.6]} 61... Ke1 {[%clk 0:00:10.8]}
62. c5 {[%clk 0:00:17.9]} 62... Rb4 {[%clk 0:00:10.5]} 63. Kd3 {[%clk
0:00:16.9]} 63... Rb3+ {[%clk 0:00:10.4]} 64. Kc2 {[%clk 0:00:17]} 64... Re3
{[%clk 0:00:10]} 65. c6 {[%clk 0:00:15.7]} 65... Re6 {[%clk 0:00:10.6]} 66. Rc8
{[%clk 0:00:09.4]} 66... Kf2 {[%clk 0:00:10.4]} 67. c7 {[%clk 0:00:04.7]} 67...
Rc6+ {[%clk 0:00:07]} 68. Kb3 {[%clk 0:00:02.3]} 68... e1=Q {[%clk 0:00:04.9]}
69. Rf8+ {[%clk 0:00:02.5]} 69... Kg2 {[%clk 0:00:05.2]} 70. c8=Q {[%clk
0:00:01.9]} 70... Rxc8 {[%clk 0:00:05.8]} 71. Rxc8 {[%clk 0:00:02.8]} 71... Qb1+
{[%clk 0:00:06.2]} 72. Ka3 {[%clk 0:00:02.7]} 72... Kf3 {[%clk 0:00:05.7]} 73.
Rc3+ {[%clk 0:00:02.3]} 73... Ke4 {[%clk 0:00:06]} 74. Rb3 {[%clk 0:00:03.2]}
74... Qa1+ {[%clk 0:00:05.1]} 75. Kb4 {[%clk 0:00:03.5]} 75... Kd4 {[%clk
0:00:05.7]} 76. Ra3 {[%clk 0:00:02.5]} 76... Qe1+ {[%clk 0:00:05.3]} 77. Kb3
{[%clk 0:00:02.2]} 77... Qb1+ {[%clk 0:00:05.4]} 78. Ka4 {[%clk 0:00:02.2]}
78... Kc4 {[%clk 0:00:05.5]} 79. Rh3 {[%clk 0:00:02]} 79... Qb4# {[%clk
0:00:05.4]} 0-1